[Event "Titled Tuesday Blitz August 22 Late 2023"]
[White "Mamedov, Rauf"]
[Black "Kim, Sergey"]
[WhiteFideId "13401653"]
[BlackFideId "13700570"]
[WhiteElo "3028"]
[BlackElo "2618"]
[Result "1-0"]
[Round "2"]
[TimeControl "180+1"]
[Date "2023.08.22"]
[WhiteClock "0:00:30"]
[BlackClock "0:00:08"]
[Board "12"]

1. e4 {[%clk 0:02:59]}  e5 {[%clk 0:02:59]} 2. Nf3 {[%clk 0:02:59]}  Nc6 {[%clk 0:02:59]} 3. Bc4 {[%clk 0:02:58]}  Bc5 {[%clk 0:02:58]} 4. c3 {[%clk 0:02:55]}  Nf6 {[%clk 0:02:58]} 5. d4 {[%clk 0:02:56]}  exd4 {[%clk 0:02:58]} 6. e5 {[%clk 0:02:56]}  d5 {[%clk 0:02:57]} 7. Bb5 {[%clk 0:02:57]}  Ne4 {[%clk 0:02:57]} 8. cxd4 {[%clk 0:02:57]}  Bb6 {[%clk 0:02:57]} 9. Nc3 {[%clk 0:02:57]}  O-O {[%clk 0:02:57]} 10. Be3 {[%clk 0:02:57]}  Bg4 {[%clk 0:02:57]} 11. Qa4 {[%clk 0:02:57]}  Ne7 {[%clk 0:02:52]} 12. Bd3 {[%clk 0:02:56]}  Nf5 {[%clk 0:02:39]} 13. Nxe4 {[%clk 0:02:32]}  dxe4 {[%clk 0:02:33]} 14. Bxe4 {[%clk 0:02:31]}  Bxf3 {[%clk 0:02:27]} 15. gxf3 {[%clk 0:02:26]}  Nxd4 {[%clk 0:02:27]} 16. O-O-O {[%clk 0:02:26]}  c5 {[%clk 0:02:26]} 17. Kb1 {[%clk 0:02:26]}  Qe7 {[%clk 0:02:18]} 18. f4 {[%clk 0:02:19]}  Rad8 {[%clk 0:02:12]} 19. Rhg1 {[%clk 0:02:13]}  Kh8 {[%clk 0:02:05]} 20. Qa3 {[%clk 0:02:08]}  Rfe8 {[%clk 0:01:52]} 21. h4 {[%clk 0:00:50]}  f6 {[%clk 0:01:39]} 22. Bxd4 {[%clk 0:00:48]}  cxd4 {[%clk 0:01:35]} 23. Qd3 {[%clk 0:00:48]}  fxe5 {[%clk 0:01:30]} 24. fxe5 {[%clk 0:00:48]}  Qxe5 {[%clk 0:01:11]} 25. Bxh7 {[%clk 0:00:48]}  Qf6 {[%clk 0:01:04]} 26. Rg5 {[%clk 0:00:35]}  Re5 {[%clk 0:00:53]} 27. Bf5 {[%clk 0:00:32]}  Rde8 {[%clk 0:00:35]} 28. f4 {[%clk 0:00:32]}  Re1 {[%clk 0:00:32]} 29. Rh5+ {[%clk 0:00:32]}  Kg8 {[%clk 0:00:33]} 30. Qb3+ {[%clk 0:00:30]}  Qf7 {[%clk 0:00:20]} 31. Bh7+ {[%clk 0:00:30]}  Kf8 {[%clk 0:00:08]} 32. Rf5 {[%clk 0:00:30]} 1-0


[Site "https://www.chess.com"]

[Event "Titled Tuesday Blitz August 22 Late 2023"]
[White "Zarubitski, Viachaslau"]
[Black "Martinez Alcantara, Jose Eduardo"]
[WhiteFideId "13509373"]
[BlackFideId "3805662"]
[WhiteElo "2614"]
[BlackElo "3023"]
[Result "0-1"]
[Round "2"]
[TimeControl "180+1"]
[Date "2023.08.22"]
[WhiteClock "0:00:00"]
[BlackClock "0:00:16"]
[Board "13"]

1. e4 {[%clk 0:02:57]}  c5 {[%clk 0:02:59]} 2. Nf3 {[%clk 0:02:53]}  d6 {[%clk 0:02:59]} 3. c3 {[%clk 0:02:52]}  Nf6 {[%clk 0:02:59]} 4. h3 {[%clk 0:02:50]}  g6 {[%clk 0:02:59]} 5. Bd3 {[%clk 0:02:49]}  Bg7 {[%clk 0:02:56]} 6. Bc2 {[%clk 0:02:49]}  Nbd7 {[%clk 0:02:55]} 7. d4 {[%clk 0:02:49]}  e5 {[%clk 0:02:55]} 8. dxe5 {[%clk 0:02:44]}  dxe5 {[%clk 0:02:55]} 9. Qd6 {[%clk 0:02:44]}  Qe7 {[%clk 0:02:43]} 10. Qxe7+ {[%clk 0:02:42]}  Kxe7 {[%clk 0:02:44]} 11. a4 {[%clk 0:02:39]}  Ne8 {[%clk 0:02:44]} 12. Na3 {[%clk 0:02:37]}  Nd6 {[%clk 0:02:44]} 13. Nb5 {[%clk 0:02:36]}  Nxb5 {[%clk 0:02:22]} 14. axb5 {[%clk 0:02:36]}  b6 {[%clk 0:02:23]} 15. Ke2 {[%clk 0:02:16]}  Bb7 {[%clk 0:02:20]} 16. Rd1 {[%clk 0:02:16]}  a6 {[%clk 0:02:15]} 17. bxa6 {[%clk 0:02:13]}  Rxa6 {[%clk 0:02:12]} 18. Rxa6 {[%clk 0:02:10]}  Bxa6+ {[%clk 0:02:13]} 19. Bd3 {[%clk 0:02:10]}  Bxd3+ {[%clk 0:02:02]} 20. Rxd3 {[%clk 0:02:11]}  Ra8 {[%clk 0:02:01]} 21. Rd1 {[%clk 0:01:56]}  f6 {[%clk 0:01:57]} 22. Kd3 {[%clk 0:01:54]}  b5 {[%clk 0:01:55]} 23. Kc2 {[%clk 0:01:51]}  Ke6 {[%clk 0:01:56]} 24. Nd2 {[%clk 0:01:42]}  Bf8 {[%clk 0:01:55]} 25. Nf1 {[%clk 0:01:41]}  f5 {[%clk 0:01:50]} 26. exf5+ {[%clk 0:01:27]}  gxf5 {[%clk 0:01:51]} 27. f4 {[%clk 0:01:27]}  Bh6 {[%clk 0:01:37]} 28. g4 {[%clk 0:01:21]}  Bxf4 {[%clk 0:01:28]} 29. gxf5+ {[%clk 0:01:16]}  Ke7 {[%clk 0:01:28]} 30. Ne3 {[%clk 0:01:04]}  Bxe3 {[%clk 0:01:03]} 31. Bxe3 {[%clk 0:01:05]}  Rg8 {[%clk 0:01:02]} 32. Rd5 {[%clk 0:00:53]}  Rg2+ {[%clk 0:01:02]} 33. Kb3 {[%clk 0:00:48]}  c4+ {[%clk 0:01:02]} 34. Ka3 {[%clk 0:00:48]}  Rg3 {[%clk 0:01:03]} 35. Ba7 {[%clk 0:00:20]}  Rxh3 {[%clk 0:00:53]} 36. Rxb5 {[%clk 0:00:19]}  Rh1 {[%clk 0:00:52]} 37. Kb4 {[%clk 0:00:18]}  h5 {[%clk 0:00:51]} 38. Kxc4 {[%clk 0:00:18]}  h4 {[%clk 0:00:52]} 39. Kb3 {[%clk 0:00:05]}  h3 {[%clk 0:00:51]} 40. Rb4 {[%clk 0:00:04]}  Kf6 {[%clk 0:00:48]} 41. Rh4 {[%clk 0:00:04]}  Kxf5 {[%clk 0:00:48]} 42. Be3 {[%clk 0:00:03]}  Nf6 {[%clk 0:00:49]} 43. Kc4 {[%clk 0:00:02]}  Ng4 {[%clk 0:00:48]} 44. Bc5 {[%clk 0:00:02]}  h2 {[%clk 0:00:47]} 45. Rh5+ {[%clk 0:00:02]}  Kg6 {[%clk 0:00:47]} 46. Rh3 {[%clk 0:00:02]}  Rb1 {[%clk 0:00:47]} 47. b4 {[%clk 0:00:01]}  h1=R {[%clk 0:00:46]} 48. Rxh1 {[%clk 0:00:02]}  Rxh1 {[%clk 0:00:46]} 49. b5 {[%clk 0:00:02]}  e4 {[%clk 0:00:31]} 50. b6 {[%clk 0:00:02]}  Rh7 {[%clk 0:00:31]} 51. Bd6 {[%clk 0:00:02]}  e3 {[%clk 0:00:28]} 52. Bg3 {[%clk 0:00:01]}  Nf6 {[%clk 0:00:22]} 53. Kb5 {[%clk 0:00:01]}  Nd5 {[%clk 0:00:20]} 54. c4 {[%clk 0:00:01]}  Nxb6 {[%clk 0:00:15]} 55. Kxb6 {[%clk 0:00:01]}  Rh3 {[%clk 0:00:16]} 56. Be1 {[%clk 0:00:00]}  Rh1 {[%clk 0:00:16]} 0-1


[Site "https://www.chess.com"]

[Event "Titled Tuesday Blitz August 22 Late 2023"]
[White "Sadhwani, Raunak"]
[Black "Saif, Malek"]
[WhiteFideId "35093487"]
[BlackFideId "8104220"]
[WhiteElo "3015"]
[BlackElo "2613"]
[Result "1-0"]
[Round "2"]
[TimeControl "180+1"]
[Date "2023.08.22"]
[WhiteClock "0:00:56"]
[BlackClock "0:00:02"]
[Board "14"]

1. d4 {[%clk 0:03:00]}  d6 {[%clk 0:03:00]} 2. e4 {[%clk 0:03:00]}  Nd7 {[%clk 0:03:00]} 3. Nc3 {[%clk 0:03:00]}  c6 {[%clk 0:03:00]} 4. f4 {[%clk 0:02:59]}  Qc7 {[%clk 0:03:00]} 5. Nf3 {[%clk 0:03:00]}  e5 {[%clk 0:03:00]} 6. Bc4 {[%clk 0:02:57]}  b5 {[%clk 0:02:57]} 7. Bb3 {[%clk 0:02:57]}  b4 {[%clk 0:02:49]} 8. Ne2 {[%clk 0:02:54]}  a5 {[%clk 0:02:45]} 9. c3 {[%clk 0:02:45]}  Ba6 {[%clk 0:02:40]} 10. fxe5 {[%clk 0:02:42]}  dxe5 {[%clk 0:02:40]} 11. Ng5 {[%clk 0:02:41]}  Nh6 {[%clk 0:02:32]} 12. O-O {[%clk 0:02:41]}  Nf6 {[%clk 0:02:22]} 13. dxe5 {[%clk 0:02:30]}  Bc5+ {[%clk 0:02:20]} 14. Kh1 {[%clk 0:02:28]}  Qxe5 {[%clk 0:01:52]} 15. Bf4 {[%clk 0:02:27]}  Qe7 {[%clk 0:01:52]} 16. h3 {[%clk 0:02:23]}  O-O {[%clk 0:01:44]} 17. Bc2 {[%clk 0:02:23]}  Nf5 {[%clk 0:01:20]} 18. e5 {[%clk 0:02:19]}  Nh5 {[%clk 0:01:02]} 19. Bxf5 {[%clk 0:01:42]}  Nxf4 {[%clk 0:01:01]} 20. Bxh7+ {[%clk 0:01:42]}  Kh8 {[%clk 0:01:01]} 21. Nxf4 {[%clk 0:01:43]}  Qxg5 {[%clk 0:01:01]} 22. Bd3 {[%clk 0:01:43]}  Rad8 {[%clk 0:00:57]} 23. Qe2 {[%clk 0:01:43]}  Bc8 {[%clk 0:00:27]} 24. Rae1 {[%clk 0:01:24]}  bxc3 {[%clk 0:00:26]} 25. bxc3 {[%clk 0:01:25]}  Rfe8 {[%clk 0:00:19]} 26. Bc4 {[%clk 0:01:15]}  Re7 {[%clk 0:00:18]} 27. Nd3 {[%clk 0:01:15]}  Ba7 {[%clk 0:00:16]} 28. Rxf7 {[%clk 0:01:08]}  Rxf7 {[%clk 0:00:16]} 29. Bxf7 {[%clk 0:01:09]}  Bb8 {[%clk 0:00:17]} 30. e6 {[%clk 0:01:02]}  g6 {[%clk 0:00:04]} 31. e7 {[%clk 0:00:59]}  Re8 {[%clk 0:00:05]} 32. Bxe8 {[%clk 0:00:58]}  Qg3 {[%clk 0:00:05]} 33. Ne5 {[%clk 0:00:58]}  Bxh3 {[%clk 0:00:05]} 34. gxh3 {[%clk 0:00:55]}  Bxe5 {[%clk 0:00:05]} 35. Qxe5+ {[%clk 0:00:55]}  Qxe5 {[%clk 0:00:02]} 36. Rxe5 {[%clk 0:00:56]} 1-0


[Site "https://www.chess.com"]

[Event "Titled Tuesday Blitz August 22 Late 2023"]
[White "Andreikin, Dmitry"]
[Black "Thomforde-Toates, Noah"]
[WhiteFideId "4158814"]
[BlackFideId "30951992"]
[WhiteElo "2994"]
[BlackElo "2610"]
[Result "0-1"]
[Round "2"]
[TimeControl "180+1"]
[Date "2023.08.22"]
[WhiteClock "0:01:00"]
[BlackClock "0:00:21"]
[Board "17"]

1. e4 {[%clk 0:03:00]}  c5 {[%clk 0:02:59]} 2. Nc3 {[%clk 0:03:00]}  g6 {[%clk 0:02:59]} 3. d4 {[%clk 0:02:59]}  cxd4 {[%clk 0:02:59]} 4. Qxd4 {[%clk 0:02:59]}  Nf6 {[%clk 0:02:59]} 5. Bb5 {[%clk 0:02:58]}  a6 {[%clk 0:02:59]} 6. e5 {[%clk 0:02:58]}  axb5 {[%clk 0:02:59]} 7. exf6 {[%clk 0:02:57]}  Nc6 {[%clk 0:03:00]} 8. Qh4 {[%clk 0:02:57]}  b4 {[%clk 0:02:33]} 9. Nd5 {[%clk 0:02:49]}  e6 {[%clk 0:02:31]} 10. Ne3 {[%clk 0:02:37]}  h6 {[%clk 0:02:29]} 11. Nf3 {[%clk 0:02:21]}  Bd6 {[%clk 0:02:04]} 12. Ng4 {[%clk 0:02:06]}  h5 {[%clk 0:01:58]} 13. O-O {[%clk 0:02:05]}  Qa5 {[%clk 0:01:40]} 14. Rd1 {[%clk 0:01:58]}  Bc7 {[%clk 0:01:38]} 15. Nh6 {[%clk 0:01:57]}  Ne5 {[%clk 0:01:30]} 16. Nxe5 {[%clk 0:01:40]}  Qxe5 {[%clk 0:01:31]} 17. g3 {[%clk 0:01:36]}  Bd8 {[%clk 0:01:29]} 18. Bg5 {[%clk 0:01:33]}  Ra5 {[%clk 0:01:20]} 19. f4 {[%clk 0:01:32]}  Qe3+ {[%clk 0:01:19]} 20. Kg2 {[%clk 0:01:32]}  Qe2+ {[%clk 0:01:09]} 21. Kh3 {[%clk 0:01:32]}  d6 {[%clk 0:01:05]} 22. Rf1 {[%clk 0:01:22]}  e5+ {[%clk 0:00:48]} 23. f5 {[%clk 0:01:22]}  Rxh6 {[%clk 0:00:36]} 24. Bxh6 {[%clk 0:01:22]}  gxf5 {[%clk 0:00:35]} 25. Bf4 {[%clk 0:01:20]}  Qg4+ {[%clk 0:00:25]} 26. Qxg4 {[%clk 0:01:20]}  hxg4+ {[%clk 0:00:24]} 27. Kh4 {[%clk 0:01:21]}  exf4 {[%clk 0:00:23]} 28. Kg5 {[%clk 0:01:20]}  f3 {[%clk 0:00:23]} 29. Rad1 {[%clk 0:01:17]}  f4+ {[%clk 0:00:21]} 30. Kxf4 {[%clk 0:01:12]}  Bxf6 {[%clk 0:00:21]} 31. Rfe1+ {[%clk 0:01:12]}  Be5+ {[%clk 0:00:21]} 32. Kg5 {[%clk 0:01:00]}  Kf8 {[%clk 0:00:21]} 0-1


[Site "https://www.chess.com"]

[Event "Titled Tuesday Blitz August 22 Late 2023"]
[White "Altman, Joshua"]
[Black "Xiong, Jeffery"]
[WhiteFideId "426210"]
[BlackFideId "2047640"]
[WhiteElo "2609"]
[BlackElo "2994"]
[Result "0-1"]
[Round "2"]
[TimeControl "180+1"]
[Date "2023.08.22"]
[WhiteClock "0:00:14"]
[BlackClock "0:01:22"]
[Board "18"]

1. d4 {[%clk 0:03:00]}  g6 {[%clk 0:03:00]} 2. c4 {[%clk 0:03:01]}  Bg7 {[%clk 0:03:00]} 3. Nf3 {[%clk 0:03:01]}  d6 {[%clk 0:03:00]} 4. Nc3 {[%clk 0:03:02]}  e5 {[%clk 0:02:59]} 5. Bg5 {[%clk 0:03:00]}  f6 {[%clk 0:02:46]} 6. Bh4 {[%clk 0:02:59]}  Nc6 {[%clk 0:02:45]} 7. e3 {[%clk 0:02:59]}  Nh6 {[%clk 0:02:40]} 8. dxe5 {[%clk 0:02:50]}  dxe5 {[%clk 0:02:40]} 9. Qxd8+ {[%clk 0:02:49]}  Kxd8 {[%clk 0:02:35]} 10. O-O-O+ {[%clk 0:02:47]}  Bd7 {[%clk 0:02:34]} 11. Nd5 {[%clk 0:02:43]}  Rf8 {[%clk 0:02:18]} 12. Nd2 {[%clk 0:02:30]}  Nf5 {[%clk 0:02:14]} 13. Bg3 {[%clk 0:02:31]}  h5 {[%clk 0:02:10]} 14. Bd3 {[%clk 0:02:19]}  Nce7 {[%clk 0:02:05]} 15. Nxe7 {[%clk 0:02:12]}  Kxe7 {[%clk 0:02:06]} 16. c5 {[%clk 0:01:45]}  Rad8 {[%clk 0:02:03]} 17. Nc4 {[%clk 0:01:31]}  Be6 {[%clk 0:02:02]} 18. e4 {[%clk 0:01:16]}  Rxd3 {[%clk 0:01:54]} 19. Rxd3 {[%clk 0:01:11]}  Bxc4 {[%clk 0:01:53]} 20. Rc3 {[%clk 0:00:58]}  Nxg3 {[%clk 0:01:53]} 21. hxg3 {[%clk 0:00:58]}  Be2 {[%clk 0:01:46]} 22. Re1 {[%clk 0:00:58]}  Bh6+ {[%clk 0:01:45]} 23. Kc2 {[%clk 0:00:58]}  Bb5 {[%clk 0:01:45]} 24. Rd1 {[%clk 0:00:57]}  Bc6 {[%clk 0:01:43]} 25. f3 {[%clk 0:00:57]}  f5 {[%clk 0:01:43]} 26. exf5 {[%clk 0:00:55]}  gxf5 {[%clk 0:01:44]} 27. Rcd3 {[%clk 0:00:52]}  Rg8 {[%clk 0:01:40]} 28. Rh1 {[%clk 0:00:41]}  e4 {[%clk 0:01:31]} 29. Rd4 {[%clk 0:00:32]}  Rxg3 {[%clk 0:01:30]} 30. Rxh5 {[%clk 0:00:31]}  Rxg2+ {[%clk 0:01:31]} 31. Kb3 {[%clk 0:00:30]}  Bg7 {[%clk 0:01:31]} 32. Rh7 {[%clk 0:00:24]}  Ke6 {[%clk 0:01:28]} 33. Rb4 {[%clk 0:00:14]}  exf3 {[%clk 0:01:22]} 0-1


[Site "https://www.chess.com"]

[Event "Titled Tuesday Blitz August 22 Late 2023"]
[White "Van Foreest, Jorden"]
[Black "Atanasov, Anthony"]
[WhiteFideId "1039784"]
[BlackFideId "2623897"]
[WhiteElo "2992"]
[BlackElo "2608"]
[Result "1-0"]
[Round "2"]
[TimeControl "180+1"]
[Date "2023.08.22"]
[WhiteClock "0:00:21"]
[BlackClock "0:00:00"]
[Board "19"]

1. e4 {[%clk 0:02:49]}  e5 {[%clk 0:02:59]} 2. Nf3 {[%clk 0:02:46]}  Nf6 {[%clk 0:02:56]} 3. Qe2 {[%clk 0:02:40]}  Bd6 {[%clk 0:02:36]} 4. d4 {[%clk 0:02:39]}  exd4 {[%clk 0:02:36]} 5. c3 {[%clk 0:02:26]}  O-O {[%clk 0:02:32]} 6. cxd4 {[%clk 0:02:24]}  Nxe4 {[%clk 0:02:32]} 7. Qxe4 {[%clk 0:02:24]}  Re8 {[%clk 0:02:32]} 8. Ne5 {[%clk 0:02:24]}  Nc6 {[%clk 0:02:26]} 9. f4 {[%clk 0:02:18]}  Bb4+ {[%clk 0:02:17]} 10. Kd1 {[%clk 0:02:08]}  d6 {[%clk 0:01:59]} 11. Nxc6 {[%clk 0:02:07]}  Rxe4 {[%clk 0:02:00]} 12. Nxd8 {[%clk 0:02:05]}  Re1+ {[%clk 0:01:59]} 13. Kc2 {[%clk 0:02:05]}  Bf5+ {[%clk 0:02:00]} 14. Kb3 {[%clk 0:02:05]}  Rxc1 {[%clk 0:02:01]} 15. Kxb4 {[%clk 0:01:33]}  Rxd8 {[%clk 0:01:46]} 16. g3 {[%clk 0:01:33]}  c5+ {[%clk 0:01:44]} 17. Ka3 {[%clk 0:01:27]}  Be4 {[%clk 0:01:32]} 18. Bg2 {[%clk 0:01:27]}  Rxh1 {[%clk 0:01:32]} 19. Bxh1 {[%clk 0:01:26]}  Bxh1 {[%clk 0:01:32]} 20. Nc3 {[%clk 0:01:26]}  cxd4 {[%clk 0:01:29]} 21. Nb5 {[%clk 0:01:23]}  Bc6 {[%clk 0:01:27]} 22. Nxd4 {[%clk 0:01:23]}  Kf8 {[%clk 0:01:25]} 23. Rc1 {[%clk 0:01:22]}  Rc8 {[%clk 0:01:25]} 24. Kb4 {[%clk 0:01:20]}  a5+ {[%clk 0:01:20]} 25. Kxa5 {[%clk 0:01:14]}  Ra8+ {[%clk 0:01:20]} 26. Kb6 {[%clk 0:01:13]}  Rxa2 {[%clk 0:01:17]} 27. b3 {[%clk 0:01:07]}  Rxh2 {[%clk 0:01:15]} 28. Nxc6 {[%clk 0:01:04]}  bxc6 {[%clk 0:01:15]} 29. Kxc6 {[%clk 0:01:00]}  Ke7 {[%clk 0:01:08]} 30. b4 {[%clk 0:00:58]}  Rg2 {[%clk 0:01:00]} 31. Rc3 {[%clk 0:00:57]}  Kd8 {[%clk 0:00:53]} 32. b5 {[%clk 0:00:53]}  f5 {[%clk 0:00:49]} 33. Kb7 {[%clk 0:00:45]}  h6 {[%clk 0:00:42]} 34. b6 {[%clk 0:00:46]}  g5 {[%clk 0:00:41]} 35. Kb8 {[%clk 0:00:45]}  gxf4 {[%clk 0:00:37]} 36. gxf4 {[%clk 0:00:45]}  Rf2 {[%clk 0:00:35]} 37. b7 {[%clk 0:00:43]}  Rxf4 {[%clk 0:00:34]} 38. Ra3 {[%clk 0:00:40]}  Rb4 {[%clk 0:00:09]} 39. Ka7 {[%clk 0:00:41]}  Kc7 {[%clk 0:00:10]} 40. Rc3+ {[%clk 0:00:39]}  Kd7 {[%clk 0:00:10]} 41. b8=Q {[%clk 0:00:37]}  Ra4+ {[%clk 0:00:11]} 42. Kb7 {[%clk 0:00:37]}  Rb4+ {[%clk 0:00:12]} 43. Ka8 {[%clk 0:00:38]}  Ra4+ {[%clk 0:00:13]} 44. Qa7+ {[%clk 0:00:38]}  Rxa7+ {[%clk 0:00:13]} 45. Kxa7 {[%clk 0:00:39]}  Ke6 {[%clk 0:00:13]} 46. Kb6 {[%clk 0:00:38]}  Kd5 {[%clk 0:00:14]} 47. Kb5 {[%clk 0:00:36]}  f4 {[%clk 0:00:13]} 48. Kb4 {[%clk 0:00:30]}  Kd4 {[%clk 0:00:12]} 49. Kb3 {[%clk 0:00:30]}  d5 {[%clk 0:00:07]} 50. Kc2 {[%clk 0:00:29]}  Ke4 {[%clk 0:00:07]} 51. Kd2 {[%clk 0:00:29]}  f3 {[%clk 0:00:07]} 52. Ke1 {[%clk 0:00:24]}  d4 {[%clk 0:00:07]} 53. Ra3 {[%clk 0:00:25]}  d3 {[%clk 0:00:05]} 54. Ra8 {[%clk 0:00:21]}  Ke3 {[%clk 0:00:02]} 55. Re8+ {[%clk 0:00:19]}  Kd4 {[%clk 0:00:01]} 56. Kd2 {[%clk 0:00:19]}  h5 {[%clk 0:00:01]} 57. Re3 {[%clk 0:00:20]}  f2 {[%clk 0:00:01]} 58. Rf3 {[%clk 0:00:20]}  Ke4 {[%clk 0:00:01]} 59. Rxf2 {[%clk 0:00:20]}  h4 {[%clk 0:00:00]} 60. Rh2 {[%clk 0:00:21]} 1-0


[Site "https://www.chess.com"]

[Event "Titled Tuesday Blitz August 22 Late 2023"]
[White "Chigaev, Maksim"]
[Black "Martinez Reyes, Pedro Ramon"]
[WhiteFideId "4108116"]
[BlackFideId "3901807"]
[WhiteElo "2949"]
[BlackElo "2586"]
[Result "1-0"]
[Round "2"]
[TimeControl "180+1"]
[Date "2023.08.22"]
[WhiteClock "0:00:18"]
[BlackClock "0:00:11"]
[Board "27"]

1. e4 {[%clk 0:03:00]}  c5 {[%clk 0:02:54]} 2. Ne2 {[%clk 0:02:59]}  Nc6 {[%clk 0:02:53]} 3. Nbc3 {[%clk 0:02:59]}  e5 {[%clk 0:02:52]} 4. Nd5 {[%clk 0:02:55]}  Nf6 {[%clk 0:02:50]} 5. Nec3 {[%clk 0:02:55]}  Be7 {[%clk 0:02:45]} 6. Bc4 {[%clk 0:02:51]}  d6 {[%clk 0:02:41]} 7. d3 {[%clk 0:02:51]}  O-O {[%clk 0:02:41]} 8. O-O {[%clk 0:02:50]}  Na5 {[%clk 0:02:37]} 9. Nxe7+ {[%clk 0:02:47]}  Qxe7 {[%clk 0:02:37]} 10. Bg5 {[%clk 0:02:30]}  Be6 {[%clk 0:02:36]} 11. Nd5 {[%clk 0:02:21]}  Bxd5 {[%clk 0:02:35]} 12. Bxd5 {[%clk 0:02:22]}  h6 {[%clk 0:02:35]} 13. Bxf6 {[%clk 0:02:19]}  Qxf6 {[%clk 0:02:34]} 14. c3 {[%clk 0:02:19]}  Nc6 {[%clk 0:02:33]} 15. Qd2 {[%clk 0:02:01]}  g5 {[%clk 0:02:32]} 16. g3 {[%clk 0:01:56]}  Qf3 {[%clk 0:02:32]} 17. Rae1 {[%clk 0:01:54]}  Kg7 {[%clk 0:01:58]} 18. Re3 {[%clk 0:01:54]}  Qh5 {[%clk 0:01:58]} 19. f4 {[%clk 0:01:46]}  f6 {[%clk 0:01:58]} 20. f5 {[%clk 0:01:24]}  Rab8 {[%clk 0:01:51]} 21. Qc2 {[%clk 0:01:19]}  Ne7 {[%clk 0:01:50]} 22. Be6 {[%clk 0:01:16]}  Rfd8 {[%clk 0:01:49]} 23. Qg2 {[%clk 0:01:11]}  Qe8 {[%clk 0:01:44]} 24. g4 {[%clk 0:01:07]}  Qa4 {[%clk 0:01:42]} 25. h4 {[%clk 0:01:03]}  Rh8 {[%clk 0:01:41]} 26. Rh3 {[%clk 0:01:03]}  Rh7 {[%clk 0:01:28]} 27. Qd2 {[%clk 0:01:01]}  Rbh8 {[%clk 0:01:21]} 28. Rf2 {[%clk 0:00:50]}  d5 {[%clk 0:01:21]} 29. b3 {[%clk 0:00:33]}  Qc6 {[%clk 0:01:20]} 30. Rfh2 {[%clk 0:00:28]}  dxe4 {[%clk 0:01:14]} 31. hxg5 {[%clk 0:00:28]}  fxg5 {[%clk 0:00:31]} 32. Rxh6 {[%clk 0:00:23]}  Rxh6 {[%clk 0:00:20]} 33. Qxg5+ {[%clk 0:00:23]}  Ng6 {[%clk 0:00:21]} 34. f6+ {[%clk 0:00:20]}  Kf8 {[%clk 0:00:20]} 35. Rxh6 {[%clk 0:00:21]}  Qxe6 {[%clk 0:00:19]} 36. Rxh8+ {[%clk 0:00:15]}  Nxh8 {[%clk 0:00:20]} 37. Qg7+ {[%clk 0:00:16]}  Ke8 {[%clk 0:00:21]} 38. Qxh8+ {[%clk 0:00:16]}  Kd7 {[%clk 0:00:19]} 39. Qg7+ {[%clk 0:00:17]}  Kd6 {[%clk 0:00:11]} 40. f7 {[%clk 0:00:18]} 1-0


[Site "https://www.chess.com"]

[Event "Titled Tuesday Blitz August 22 Late 2023"]
[White "Rosen, Eric"]
[Black "Drygalov, Sergey"]
[WhiteFideId "2032562"]
[BlackFideId "24171743"]
[WhiteElo "2583"]
[BlackElo "2942"]
[Result "0-1"]
[Round "2"]
[TimeControl "180+1"]
[Date "2023.08.22"]
[WhiteClock "0:00:00"]
[BlackClock "0:01:06"]
[Board "28"]

1. d4 {[%clk 0:03:00]}  Nf6 {[%clk 0:02:56]} 2. Bf4 {[%clk 0:03:00]}  e6 {[%clk 0:02:50]} 3. e3 {[%clk 0:03:01]}  b6 {[%clk 0:02:51]} 4. Qf3 {[%clk 0:03:00]}  d5 {[%clk 0:02:44]} 5. Nc3 {[%clk 0:03:00]}  Bd6 {[%clk 0:02:42]} 6. g4 {[%clk 0:02:54]}  Bb7 {[%clk 0:02:42]} 7. O-O-O {[%clk 0:02:49]}  Ne4 {[%clk 0:02:37]} 8. Nge2 {[%clk 0:02:42]}  Nd7 {[%clk 0:02:37]} 9. Nxe4 {[%clk 0:02:38]}  dxe4 {[%clk 0:02:37]} 10. Qg3 {[%clk 0:02:39]}  Nf6 {[%clk 0:02:37]} 11. Bg2 {[%clk 0:02:32]}  O-O {[%clk 0:02:33]} 12. h4 {[%clk 0:02:31]}  a5 {[%clk 0:02:30]} 13. h5 {[%clk 0:02:31]}  a4 {[%clk 0:02:28]} 14. g5 {[%clk 0:02:27]}  Nd5 {[%clk 0:02:29]} 15. Bxd6 {[%clk 0:02:04]}  cxd6 {[%clk 0:02:28]} 16. Bxe4 {[%clk 0:02:05]}  Rc8 {[%clk 0:02:19]} 17. g6 {[%clk 0:02:00]}  fxg6 {[%clk 0:01:53]} 18. hxg6 {[%clk 0:01:53]}  h6 {[%clk 0:01:53]} 19. Rh4 {[%clk 0:01:17]}  a3 {[%clk 0:01:50]} 20. b3 {[%clk 0:01:17]}  Nb4 {[%clk 0:01:48]} 21. Bd3 {[%clk 0:00:56]}  Ba6 {[%clk 0:01:28]} 22. Kd2 {[%clk 0:00:42]}  Bxd3 {[%clk 0:01:26]} 23. cxd3 {[%clk 0:00:43]}  Rc2+ {[%clk 0:01:26]} 24. Ke1 {[%clk 0:00:43]}  Rxa2 {[%clk 0:01:24]} 25. Nf4 {[%clk 0:00:18]}  Qf6 {[%clk 0:01:19]} 26. Rd2 {[%clk 0:00:13]}  Rxd2 {[%clk 0:01:14]} 27. Kxd2 {[%clk 0:00:14]}  a2 {[%clk 0:01:14]} 28. Rh1 {[%clk 0:00:15]}  e5 {[%clk 0:01:14]} 29. dxe5 {[%clk 0:00:11]}  Qxe5 {[%clk 0:01:12]} 30. d4 {[%clk 0:00:11]}  Qe4 {[%clk 0:01:12]} 31. Rd1 {[%clk 0:00:02]}  Qc2+ {[%clk 0:01:12]} 32. Ke1 {[%clk 0:00:02]}  Qxd1+ {[%clk 0:01:11]} 33. Kxd1 {[%clk 0:00:03]}  a1=Q+ {[%clk 0:01:11]} 34. Ke2 {[%clk 0:00:04]}  Qb2+ {[%clk 0:01:10]} 35. Kf3 {[%clk 0:00:04]}  Nd5 {[%clk 0:01:09]} 36. Qg4 {[%clk 0:00:03]}  Nxf4 {[%clk 0:01:09]} 37. exf4 {[%clk 0:00:04]}  Qxb3+ {[%clk 0:01:10]} 38. Kg2 {[%clk 0:00:04]}  Qd5+ {[%clk 0:01:10]} 39. Kg1 {[%clk 0:00:03]}  Qf5 {[%clk 0:01:10]} 40. Qg2 {[%clk 0:00:03]}  Qxf4 {[%clk 0:01:08]} 41. Qd5+ {[%clk 0:00:02]}  Kh8 {[%clk 0:01:08]} 42. Qa2 {[%clk 0:00:02]}  Qg5+ {[%clk 0:01:08]} 43. Kh1 {[%clk 0:00:02]}  Qxg6 {[%clk 0:01:08]} 44. d5 {[%clk 0:00:02]}  Rf5 {[%clk 0:01:06]} 45. Qa8+ {[%clk 0:00:00]}  Kh7 {[%clk 0:01:06]} 0-1


[Site "https://www.chess.com"]